fUST/lending_fUST_20250617
["ID","MTS","AMOUNT","RATE_DAILY","PERIOD"]
[366283343,1750174232552,-300.0,0.00019621,2]
[366283345,1750174232562,-168.150916,0.00019622,2]
[366283347,1750174232572,-609.429006,0.00019622,2]
[366283348,1750174232582,-24900.0,0.00019622,2]
[366283351,1750174232592,-1997.84289726,0.0002,2]
[366283353,1750174232602,-791.72313881,0.0002,2]
[366283355,1750174232612,-4053.0,0.0002,15]
[366283357,1750174232622,-538.462013,0.00020187,2]
[366283358,1750174232632,-500.0,0.00020492,2]
[366283359,1750174232642,-534.21087278,0.000206,3]
[366283360,1750174232653,-534.21087254,0.000206,3]
[366283361,1750174232666,-534.21087254,0.000206,3]
[366283362,1750174232676,-534.21087254,0.000206,3]
[366283363,1750174232686,-534.21087254,0.00020728,3]
[366283364,1750174232696,-534.21087254,0.00020934,4]
[366283365,1750174232706,-2011.19,0.00020989,2]
[366283366,1750174232716,-15762.73091282,0.00020997,2]
[366283367,1750174232730,-34237.26908718,0.00020997,2]
[366283368,1750174232740,-300.0,0.00020997,2]
[366283369,1750174232750,-246.868,0.00020998,2]
[366283370,1750174232761,-2011.19,0.00020999,2]
[366283371,1750174232770,-2011.19,0.00020999,2]
[366283372,1750174232780,-2011.19,0.00020999,2]
[366283373,1750174232791,-2011.19,0.00020999,2]
[366283375,1750174232801,-2011.19,0.00020999,2]
[366283377,1750174232811,-2011.19,0.00020999,2]
[366283379,1750174232822,-2011.19,0.00020999,2]
[366283380,1750174232831,-2011.19,0.00020999,2]
[366283381,1750174232841,-2011.19,0.00020999,2]
[366283382,1750174232851,-2011.19,0.00020999,2]
[366283383,1750174232861,-2011.19,0.00020999,2]
[366283384,1750174232871,-500.0,0.00020999,2]
[366283385,1750174232881,-500.0,0.00020999,2]
[366283386,1750174232892,-500.0,0.00020999,2]
[366283387,1750174232902,-500.0,0.00020999,2]
[366283388,1750174232914,-500.0,0.00020999,2]
[366283389,1750174232925,-500.0,0.00020999,2]
[366283390,1750174232935,-500.0,0.00020999,2]
[366283391,1750174232947,-359.47543943,0.00020999,2]
[366283392,1750174232957,-411.9759898,0.00020999,2]
[366283393,1750174232970,-88.0240102,0.00020999,2]
[366283394,1750174232980,-2787.86819034,0.00021,2]
[366283395,1750174233040,-500.0,0.00019999,2]
[366283396,1750174233051,-500.0,0.00019999,2]
[366283397,1750174233062,-500.0,0.00019999,2]
[366283398,1750174233074,-300.66395014,0.00020999,2]
[366283399,1750174233085,-500.0,0.00020999,2]
[366283400,1750174233095,-580.82565171,0.00021,2]
[366283401,1750174233106,-500.0,0.00021,2]
[366283402,1750174233117,-500.0,0.00021,2]
[366283403,1750174233129,-534.21087254,0.00021141,4]
[366283404,1750174233140,-201.68117583,0.00021321,2]
[366283405,1750174233151,-534.21087254,0.00021348,5]
[366283406,1750174233165,-420.0,0.00021374,2]
[366283407,1750174233176,-420.0,0.00021374,2]
[366283408,1750174233188,-1000.0,0.00021548,2]
[366283409,1750174233198,-534.13547628,0.00021548,2]
[366283410,1750174233209,-534.21087254,0.00021555,5]
[366283411,1750174233220,-4715.00803634,0.00021574,2]
[366283412,1750174233234,-7825.11507318,0.00021574,2]
[366283413,1750174233244,-21.86930909,0.00021587,2]
[366283414,1750174233261,-522.0,0.00021587,2]
[366283475,1750174239532,-470.47838558,0.00019999,2]
[366283477,1750174239542,-500.0,0.00020999,2]
[366283479,1750174239552,-500.0,0.00020999,2]
[366283481,1750174239561,-500.0,0.00020999,2]
[366283483,1750174239571,-500.0,0.00020999,2]
[366283485,1750174239580,-500.0,0.00020999,2]
[366283487,1750174239590,-2812.52471931,0.00021587,2]
[366283488,1750174239600,-835.82910252,0.00021604,2]
[366283489,1750174239610,-534.21087254,0.00021762,5]
[366283490,1750174239618,-534.21087254,0.00021969,6]
[366283492,1750174239628,-1000.0,0.00022096,2]
[366283494,1750174239638,-534.21087254,0.00022176,6]
[366283496,1750174239648,-2011.19,0.00022261,2]
[366283498,1750174239657,-534.21087254,0.00022383,7]
[366283500,1750174239668,-157.74802121,0.000225,2]
[366283502,1750174239678,-160.0,0.00022542,3]
[366283504,1750174239688,-534.21087254,0.0002259,7]
[366283506,1750174239698,-1172.22,0.000226,7]
[366283507,1750174239707,-500.0,0.00022684,2]
[366283508,1750174239718,-534.21087254,0.00022797,7]
[366283509,1750174239728,-528.71,0.00022831,3]
[366283510,1750174239738,-420.0,0.0002284,2]
[366283511,1750174239748,-157.74802121,0.0002285,2]
[366283512,1750174239757,-168.0,0.0002286,2]
[366283513,1750174239767,-176.22,0.00022861,3]
[366283514,1750174239777,-2011.19,0.00022871,2]
[366283515,1750174239787,-207.4,0.00022978,2]
[366283516,1750174239797,-7219.66761321,0.00022978,2]
[366283517,1750174239807,-534.21087254,0.00023003,8]
[366283518,1750174239817,-168.150916,0.00023047,2]
[366283519,1750174239827,-500.0,0.00023142,2]
[366283520,1750174239838,-157.74802121,0.000232,2]
[366283522,1750174239847,-534.21087254,0.0002321,8]
[366283523,1750174239857,-500.0,0.00023226,2]
[366283524,1750174239868,-587.0,0.00023283,2]
[366283525,1750174239877,-500.0,0.0002338,2]
[366283526,1750174239888,-534.21087254,0.00023417,9]
[366283527,1750174239898,-500.0,0.00023492,2]
[366283529,1750174239908,-157.74802121,0.0002355,2]
[366283531,1750174239920,-500.0,0.00023567,2]
[366283534,1750174239930,-534.21087254,0.00023624,9]
[366283536,1750174239944,-160.0,0.0002363,2]
[366283538,1750174239954,-213.39869953,0.00023636,2]
[366283540,1750174239964,-160.0,0.00023636,2]
[366283542,1750174239973,-845.62440851,0.00023637,2]
[366283544,1750174239983,-229.94211981,0.00023637,2]
[366283545,1750174239992,-320.0,0.00023656,2]
[366283548,1750174240002,-2011.19,0.00023699,2]
[366283552,1750174240014,-1172.22,0.000237,7]
[366283554,1750174240024,-423.699061,0.00023716,3]
[366283557,1750174240034,-500.0,0.00023736,2]
[366283560,1750174240044,-160.0,0.00023736,2]
[366283583,1750174240162,-352.42337029,0.00023737,2]
[366283585,1750174240175,-2011.19,0.00023799,2]
[366283587,1750174240186,-48115.24680469,0.000238,5]
[366283589,1750174240196,-500.0,0.00023831,2]
[366283592,1750174240206,-534.21087254,0.00023831,10]
[366283595,1750174240215,-500.0,0.00023855,2]
[366283597,1750174240225,-900.0,0.00023866,2]
[366283600,1750174240234,-362.30006426,0.00023874,2]
[366283602,1750174240244,-4417.88,0.000239,7]
[366283603,1750174240254,-157.74802121,0.000239,2]
[366283605,1750174240264,-197.0974737,0.000239,2]
[366283607,1750174240273,-424.62582665,0.000239,3]
[366283610,1750174240283,-12540.12310952,0.000239,3]
[366283612,1750174240292,-19541.0992479,0.000239,3]
[366283614,1750174240302,-845.62440851,0.000239,3]
[366283616,1750174240311,-160.0,0.000239,3]
[366283618,1750174240321,-160.0,0.000239,3]
[366283620,1750174240330,-229.94211981,0.000239,3]
[366283622,1750174240339,-221.55252739,0.00023902,2]
[366283624,1750174240349,-500.0,0.00023973,2]
[366283626,1750174240358,-500.0,0.00023997,2]
[366283628,1750174240368,-2011.19,0.00023999,2]
[366283630,1750174240378,-2011.19,0.00023999,2]
[366283632,1750174240387,-2011.19,0.00023999,2]
[366283634,1750174240397,-2011.19,0.00023999,2]
[366283636,1750174240407,-2011.19,0.00023999,2]
[366283638,1750174240420,-2011.19,0.00023999,2]
[366283640,1750174240430,-2011.19,0.00023999,2]
[366283642,1750174240439,-2011.32964884,0.00023999,2]
[366283644,1750174240449,-792482.1049659,0.00024,7]
[366283646,1750174240459,-3662.77,0.00024,3]
[366283648,1750174240468,-23489.83,0.00024,7]
[366283650,1750174240478,-533.98,0.00024,2]
[366283652,1750174240487,-127200.35,0.00024,2]
[366283654,1750174240497,-213.39869953,0.00024,7]
[366283656,1750174240506,-424.62582665,0.00024,7]
[366283658,1750174240516,-331.35063543,0.00024,14]
[366283660,1750174240525,-160.0,0.00024,7]
[366283662,1750174240535,-160.0,0.00024,7]
[366283664,1750174240545,-229.94211981,0.00024,7]
[366283666,1750174240555,-3000.0,0.0002401,2]
[366283668,1750174240564,-3000.0,0.0002402,2]
[366283670,1750174240574,-3000.0,0.0002403,2]
[366283672,1750174240583,-534.21087254,0.00024038,10]
[366283674,1750174240593,-3000.0,0.0002404,2]
[366283676,1750174240603,-3000.0,0.0002405,2]
[366283678,1750174240613,-3000.0,0.0002406,2]
[366283680,1750174240623,-3000.0,0.0002407,2]
[366283681,1750174240633,-3000.0,0.0002408,2]
[366283683,1750174240643,-3000.0,0.0002409,2]
[366283685,1750174240653,-3000.0,0.000241,2]
[366283687,1750174240663,-151.0,0.000241,5]
[366283690,1750174240678,-10825.39059312,0.00024109,2]
[366283692,1750174240687,-24756.20696488,0.00024109,2]
[366283693,1750174240697,-460.0,0.00024109,6]
[366283696,1750174240707,-199.335582,0.00024109,6]
[366283698,1750174240719,-440.0,0.00024109,6]
[366283700,1750174240728,-460.0,0.00024109,6]
[366283701,1750174240739,-430.80264988,0.00024109,6]
[366283703,1750174240748,-460.0,0.00024109,6]
[366283706,1750174240759,-430.0,0.00024109,6]
[366283708,1750174240770,-460.0,0.00024109,6]
[366283709,1750174240779,-460.0,0.00024109,6]
[366283711,1750174240790,-460.0,0.00024109,6]
[366283713,1750174240800,-462.14,0.00024109,6]
[366283715,1750174240810,-572.45655225,0.00024109,6]
[366283717,1750174240819,-462.72127197,0.00024109,6]
[366283719,1750174240829,-460.0,0.00024109,6]
[366283721,1750174240839,-529.22279162,0.00024109,6]
[366283723,1750174240850,-275.77616446,0.00024109,6]
[366283725,1750174240859,-460.0,0.00024109,6]
[366283727,1750174240869,-460.0,0.00024109,6]
[366283729,1750174240879,-601.41771897,0.00024109,6]
[366283731,1750174240888,-460.0,0.00024109,6]
[366283733,1750174240897,-460.0,0.00024109,6]
[366283735,1750174240907,-346.99774531,0.00024109,6]
[366283737,1750174240918,-460.0,0.00024109,6]
[366283739,1750174240932,-530.02470924,0.00024109,6]
[366283741,1750174240942,-454.49168496,0.00024109,6]
[366283743,1750174240952,-159.39929833,0.00024109,6]
[366283745,1750174240963,-460.0,0.00024109,6]
[366283747,1750174240972,-460.0,0.00024109,6]
[366283749,1750174240982,-460.0,0.00024109,6]
[366283751,1750174240992,-460.0,0.00024109,6]
[366283753,1750174241001,-383.50870387,0.00024109,6]
[366283755,1750174241011,-460.0,0.00024109,6]
[366283757,1750174241022,-263.93283531,0.00024109,6]
[366283759,1750174241032,-501.77666421,0.00024109,6]
[366283761,1750174241042,-460.0,0.00024109,6]
[366283763,1750174241052,-460.0,0.00024109,6]
[366283765,1750174241062,-460.0,0.00024109,6]
[366283767,1750174241072,-432.85413838,0.00024109,6]
[366283769,1750174241082,-460.0,0.00024109,6]
[366283771,1750174241095,-460.0,0.00024109,6]
[366283773,1750174241105,-460.0,0.00024109,6]
[366283775,1750174241115,-586.32868557,0.00024109,6]
[366283777,1750174241125,-460.0,0.00024109,6]
[366283779,1750174241134,-460.0,0.00024109,6]
[366283781,1750174241144,-430.0,0.00024109,6]
[366283783,1750174241154,-1313.94,0.00024109,6]
[366283785,1750174241164,-460.0,0.00024109,6]
[366283786,1750174241176,-460.0,0.00024109,6]
[366283788,1750174241186,-460.0,0.00024109,6]
[366283790,1750174241196,-460.0,0.00024109,6]
[366283793,1750174241206,-460.0,0.00024109,6]
[366283794,1750174241216,-460.0,0.00024109,6]
[366283796,1750174241225,-460.0,0.00024109,6]
[366283799,1750174241235,-460.0,0.00024109,6]
[366283801,1750174241245,-460.0,0.00024109,6]
[366283803,1750174241255,-460.0,0.00024109,6]
[366283804,1750174241265,-460.0,0.00024109,6]
[366283806,1750174241275,-460.0,0.00024109,6]
[366283808,1750174241284,-456.34196986,0.00024109,6]
[366283810,1750174241294,-460.0,0.00024109,6]
[366283812,1750174241304,-460.0,0.00024109,6]
[366283814,1750174241314,-500.0,0.00024109,6]
[366283816,1750174241325,-500.0,0.00024109,6]
[366283818,1750174241335,-500.0,0.00024109,6]
[366283820,1750174241345,-460.0,0.00024109,6]
[366283822,1750174241355,-460.0,0.00024109,6]
[366283824,1750174241365,-460.0,0.00024109,6]
[366283826,1750174241375,-460.0,0.00024109,6]
[366283829,1750174241385,-205.93978856,0.00024109,6]
[366283831,1750174241394,-460.0,0.00024109,6]
[366283833,1750174241404,-460.0,0.00024109,6]
[366283843,1750174241504,-460.0,0.00024109,6]
[366283845,1750174241514,-460.0,0.00024109,6]
[366283847,1750174241524,-460.0,0.00024109,6]
[366283849,1750174241534,-460.0,0.00024109,6]
[366283851,1750174241544,-460.0,0.00024109,6]
[366283853,1750174241554,-445.34452072,0.00024109,6]
[366283855,1750174241564,-460.0,0.00024109,6]
[366283857,1750174241574,-460.0,0.00024109,6]
[366283859,1750174241584,-460.0,0.00024109,6]
[366283861,1750174241594,-460.0,0.00024109,6]
[366283863,1750174241604,-460.0,0.00024109,6]
[366283865,1750174241614,-430.88540725,0.00024109,6]
[366283867,1750174241624,-460.0,0.00024109,6]
[366283869,1750174241634,-460.0,0.00024109,6]
[366283871,1750174241643,-460.0,0.00024109,6]
[366283873,1750174241653,-460.0,0.00024109,6]
[366283875,1750174241663,-460.0,0.00024109,6]
[366283877,1750174241679,-460.0,0.00024109,6]
[366283879,1750174241689,-460.0,0.00024109,2]
[366283881,1750174241698,-560.77469284,0.00024109,6]
[366283883,1750174241708,-460.0,0.00024109,6]
[366283885,1750174241719,-460.0,0.00024109,6]
[366283887,1750174241729,-460.0,0.00024109,6]
[366283889,1750174241738,-460.0,0.00024109,6]
[366283891,1750174241748,-460.0,0.00024109,6]
[366283893,1750174241758,-463.20767868,0.00024109,6]
[366283895,1750174241768,-460.0,0.00024109,6]
[366283897,1750174241777,-460.0,0.00024109,6]
[366283899,1750174241787,-460.0,0.00024109,6]
[366283901,1750174241796,-460.0,0.00024109,6]
[366283903,1750174241806,-460.0,0.00024109,6]
[366283905,1750174241816,-500.0,0.00024109,6]
[366283907,1750174241825,-460.0,0.00024109,6]
[366283909,1750174241835,-460.0,0.00024109,6]
[366283911,1750174241844,-430.0,0.00024109,6]
[366283913,1750174241854,-460.0,0.00024109,6]
[366283915,1750174241864,-460.0,0.00024109,6]
[366283917,1750174241874,-460.0,0.00024109,6]
[366283919,1750174241884,-460.0,0.00024109,6]
[366283921,1750174241894,-472.84290823,0.00024109,6]
[366283923,1750174241903,-460.0,0.00024109,6]
[366283925,1750174241913,-460.0,0.00024109,6]
[366283927,1750174241930,-460.0,0.00024109,6]
[366283929,1750174241940,-460.0,0.00024109,6]
[366283930,1750174241950,-400.0,0.00024109,6]
[366283932,1750174241959,-460.0,0.00024109,6]
[366283935,1750174241970,-460.0,0.00024109,6]
[366283936,1750174241980,-460.0,0.00024109,6]
[366283939,1750174241990,-460.0,0.00024109,6]
[366283940,1750174241999,-474.52452538,0.00024109,6]
[366283942,1750174242011,-460.0,0.00024109,6]
[366283944,1750174242020,-460.0,0.00024109,6]
[366283946,1750174242030,-460.0,0.00024109,6]
[366283948,1750174242040,-460.0,0.00024109,6]
[366283950,1750174242050,-460.0,0.00024109,6]
[366283952,1750174242059,-460.0,0.00024109,6]
[366283954,1750174242069,-360.0,0.00024109,6]
[366283956,1750174242079,-460.0,0.00024109,6]
[366283958,1750174242089,-460.0,0.00024109,6]
[366283960,1750174242099,-2363.96,0.00024109,2]
[366283962,1750174242109,-460.0,0.00024109,6]
[366283964,1750174242118,-460.0,0.00024109,6]
[366283966,1750174242128,-460.0,0.00024109,6]
[366283968,1750174242137,-460.0,0.00024109,6]
[366283970,1750174242147,-460.0,0.00024109,6]
[366283972,1750174242157,-460.0,0.00024109,6]
[366283974,1750174242170,-460.0,0.00024109,6]
[366283976,1750174242180,-460.0,0.00024109,6]
[366283978,1750174242190,-387.8954893,0.00024109,6]
[366283980,1750174242200,-1327.76,0.00024109,6]
[366283982,1750174242210,-460.01587399,0.00024109,6]
[366283984,1750174242219,-460.0,0.00024109,6]
[366283986,1750174242229,-460.0,0.00024109,6]
[366283988,1750174242239,-580.91417124,0.00024109,6]
[366283990,1750174242248,-460.0,0.00024109,6]
[366283992,1750174242258,-595.65,0.00024109,6]
[366283994,1750174242267,-460.0,0.00024109,6]
[366283996,1750174242277,-460.0,0.00024109,6]
[366283998,1750174242287,-460.0,0.00024109,6]
[366284000,1750174242296,-460.0,0.00024109,6]
[366284002,1750174242306,-469.13285432,0.00024109,6]
[366284004,1750174242316,-307.20643999,0.00024109,6]
[366284006,1750174242326,-460.0,0.00024109,6]
[366284008,1750174242336,-460.0,0.00024109,6]
[366284010,1750174242346,-460.0,0.00024109,6]
[366284012,1750174242356,-460.0,0.00024109,6]
[366284014,1750174242365,-432.89837996,0.00024109,6]
[366284016,1750174242375,-460.0,0.00024109,6]
[366284018,1750174242387,-460.0,0.00024109,6]
[366284020,1750174242397,-553.72675205,0.00024109,6]
[366284022,1750174242407,-460.0,0.00024109,6]
[366284024,1750174242419,-460.0,0.00024109,6]
[366284026,1750174242429,-460.0,0.00024109,6]
[366284028,1750174242439,-500.0,0.00024109,6]
[366284030,1750174242449,-460.0,0.00024109,6]
[366284032,1750174242459,-503.24745646,0.00024109,6]
[366284034,1750174242469,-174.56710171,0.00024109,6]
[366284036,1750174242479,-460.0,0.00024109,6]
[366284038,1750174242489,-1000.0,0.00024109,6]
[366284040,1750174242499,-212.34259664,0.00024109,6]
[366284041,1750174242508,-500.55974007,0.00024109,6]
[366284044,1750174242519,-430.0,0.00024109,6]
[366284045,1750174242528,-460.0,0.00024109,6]
[366284047,1750174242538,-460.0,0.00024109,6]
[366284049,1750174242549,-500.0,0.00024109,6]
[366284051,1750174242559,-500.0,0.00024109,6]
[366284053,1750174242568,-500.0,0.00024109,6]
[366284055,1750174242578,-460.0,0.00024109,6]
[366284057,1750174242588,-500.0,0.00024109,6]
[366284059,1750174242598,-500.0,0.00024109,6]
[366284061,1750174242608,-500.0,0.00024109,6]
[366284063,1750174242617,-460.0,0.00024109,6]
[366284065,1750174242627,-500.0,0.00024109,6]
[366284067,1750174242637,-500.0,0.00024109,6]
[366284069,1750174242647,-500.0,0.00024109,6]
[366284078,1750174242732,-460.0,0.00024109,6]
[366284080,1750174242743,-500.0,0.00024109,6]
[366284082,1750174242753,-500.0,0.00024109,6]
[366284085,1750174242764,-500.0,0.00024109,6]
[366284086,1750174242773,-500.0,0.00024109,6]
[366284089,1750174242784,-500.0,0.00024109,6]
[366284091,1750174242794,-500.0,0.00024109,6]
[366284093,1750174242804,-500.0,0.00024109,6]
[366284095,1750174242814,-460.0,0.00024109,6]
[366284097,1750174242825,-500.0,0.00024109,6]
[366284099,1750174242835,-460.0,0.00024109,6]
[366284101,1750174242845,-500.0,0.00024109,6]
[366284103,1750174242855,-500.0,0.00024109,6]
[366284104,1750174242864,-500.0,0.00024109,6]
[366284106,1750174242874,-500.0,0.00024109,6]
[366284108,1750174242884,-500.0,0.00024109,6]
[366284111,1750174242893,-631.60555567,0.00024109,6]
[366284113,1750174242903,-460.0,0.00024109,6]
[366284116,1750174242913,-500.0,0.00024109,6]
[366284118,1750174242928,-460.0,0.00024109,6]
[366284121,1750174242938,-460.0,0.00024109,6]
[366284123,1750174242948,-460.0,0.00024109,6]
[366284125,1750174242958,-460.0,0.00024109,6]
[366284127,1750174242969,-460.0,0.00024109,6]
[366284129,1750174242979,-460.0,0.00024109,6]
[366284131,1750174242989,-460.0,0.00024109,6]
[366284133,1750174242999,-470.0,0.00024109,6]
[366284136,1750174243011,-460.0,0.00024109,6]
[366284138,1750174243021,-460.0,0.00024109,6]
[366284140,1750174243031,-460.0,0.00024109,6]
[366284141,1750174243041,-460.0,0.00024109,6]
[366284143,1750174243051,-460.0,0.00024109,6]
[366284145,1750174243061,-460.0,0.00024109,6]
[366284147,1750174243071,-460.0,0.00024109,6]
[366284149,1750174243081,-440.0,0.00024109,6]
[366284152,1750174243090,-460.0,0.00024109,6]
[366284154,1750174243100,-460.0,0.00024109,6]
[366284156,1750174243110,-460.58583264,0.00024109,6]
[366284158,1750174243120,-460.0,0.00024109,6]
[366284160,1750174243130,-1288.87,0.00024109,6]
[366284162,1750174243140,-460.0,0.00024109,6]
[366284164,1750174243150,-460.0,0.00024109,6]
[366284166,1750174243160,-440.0,0.00024109,6]
[366284168,1750174243172,-460.0,0.00024109,6]
[366284170,1750174243181,-460.53622006,0.00024109,6]
[366284172,1750174243191,-460.0,0.00024109,6]
[366284174,1750174243200,-444.54052735,0.00024109,6]
[366284176,1750174243210,-460.0,0.00024109,6]
[366284178,1750174243220,-460.0,0.00024109,6]
[366284180,1750174243229,-460.0,0.00024109,6]
[366284182,1750174243239,-449.13128361,0.00024109,6]
[366284184,1750174243249,-1647.5,0.00024109,2]
[366284186,1750174243259,-1167.07,0.00024109,6]
[366284188,1750174243269,-460.0,0.00024109,6]
[366284190,1750174243279,-460.0,0.00024109,6]
[366284192,1750174243288,-460.0,0.00024109,6]
[366284194,1750174243298,-347.9317554,0.00024109,6]
[366284196,1750174243307,-460.0,0.00024109,6]
[366284198,1750174243317,-460.0,0.00024109,6]
[366284200,1750174243327,-301.59274398,0.00024109,6]
[366284202,1750174243337,-460.0,0.00024109,6]
[366284204,1750174243347,-460.0,0.00024109,6]
[366284206,1750174243356,-460.0,0.00024109,6]
[366284208,1750174243366,-460.0,0.00024109,6]
[366284210,1750174243375,-687.51,0.00024109,6]
[366284212,1750174243385,-460.0,0.00024109,6]
[366284214,1750174243394,-460.45291636,0.00024109,6]
[366284216,1750174243404,-460.0,0.00024109,6]
[366284218,1750174243414,-557.79015751,0.00024109,6]
[366284220,1750174243425,-460.0,0.00024109,6]
[366284222,1750174243435,-430.0,0.00024109,6]
[366284224,1750174243445,-460.0,0.00024109,6]
[366284226,1750174243455,-460.0,0.00024109,6]
[366284228,1750174243465,-460.0,0.00024109,6]
[366284230,1750174243475,-460.0,0.00024109,6]
[366284232,1750174243485,-1524.41,0.00024109,6]
[366284234,1750174243494,-460.0,0.00024109,6]
[366284236,1750174243504,-460.0,0.00024109,6]
[366284238,1750174243514,-460.0,0.00024109,6]
[366284240,1750174243523,-460.0,0.00024109,6]
[366284242,1750174243534,-461.253055,0.00024109,6]
[366284244,1750174243544,-460.0,0.00024109,6]
[366284246,1750174243555,-460.0,0.00024109,6]
[366284248,1750174243567,-460.0,0.00024109,6]
[366284250,1750174243578,-460.0,0.00024109,6]
[366284252,1750174243588,-460.0,0.00024109,6]
[366284253,1750174243597,-460.0,0.00024109,6]
[366284255,1750174243606,-461.19189548,0.00024109,6]
[366284257,1750174243616,-460.0,0.00024109,6]
[366284259,1750174243628,-460.0,0.00024109,6]
[366284261,1750174243638,-460.0,0.00024109,6]
[366284263,1750174243647,-460.0,0.00024109,6]
[366284265,1750174243657,-460.0,0.00024109,6]
[366284267,1750174243669,-460.0,0.00024109,6]
[366284269,1750174243680,-460.0,0.00024109,6]
[366284271,1750174243690,-416.11999583,0.00024109,6]
[366284273,1750174243700,-460.0,0.00024109,6]
[366284275,1750174243709,-460.0,0.00024109,6]
[366284277,1750174243719,-460.0,0.00024109,6]
[366284279,1750174243729,-511.04995103,0.00024109,6]
[366284281,1750174243739,-460.0,0.00024109,6]
[366284283,1750174243749,-460.0,0.00024109,6]
[366284285,1750174243761,-460.0,0.00024109,6]
[366284287,1750174243770,-460.0,0.00024109,6]
[366284289,1750174243780,-460.0,0.00024109,6]
[366284291,1750174243790,-553.7,0.00024109,6]
[366284301,1750174243881,-460.0,0.00024109,6]
[366284303,1750174243892,-460.0,0.00024109,6]
[366284305,1750174243902,-460.0,0.00024109,6]
[366284307,1750174243912,-1811.52,0.00024109,6]
[366284309,1750174243925,-460.0,0.00024109,6]
[366284311,1750174243938,-460.0,0.00024109,6]
[366284313,1750174243948,-460.0,0.00024109,6]
[366284315,1750174243957,-460.0,0.00024109,6]
[366284317,1750174243967,-460.0,0.00024109,6]
[366284319,1750174243978,-460.0,0.00024109,6]
[366284321,1750174243988,-460.0,0.00024109,6]
[366284323,1750174243997,-460.0,0.00024109,6]
[366284325,1750174244007,-460.0,0.00024109,6]
[366284327,1750174244018,-460.0,0.00024109,6]
[366284329,1750174244028,-1098.21,0.00024109,6]
[366284330,1750174244038,-460.0,0.00024109,6]
[366284332,1750174244048,-460.0,0.00024109,6]
[366284334,1750174244058,-460.0,0.00024109,6]
[366284336,1750174244068,-460.0,0.00024109,6]
[366284338,1750174244078,-460.0,0.00024109,6]
[366284340,1750174244088,-460.0,0.00024109,6]
[366284342,1750174244098,-460.0,0.00024109,6]
[366284344,1750174244107,-460.0,0.00024109,6]
[366284346,1750174244117,-460.0,0.00024109,6]
[366284348,1750174244126,-503.11230305,0.00024109,6]
[366284350,1750174244136,-460.0,0.00024109,6]
[366284352,1750174244146,-762.93,0.00024109,6]
[366284354,1750174244155,-460.0,0.00024109,6]
[366284356,1750174244165,-460.0,0.00024109,6]
[366284357,1750174244178,-460.0,0.00024109,6]
[366284358,1750174244187,-263.86255829,0.00024109,6]
[366284359,1750174244197,-460.0,0.00024109,6]
[366284360,1750174244207,-363.9071636,0.00024109,6]
[366284361,1750174244217,-460.0,0.00024109,6]
[366284362,1750174244226,-460.0,0.00024109,6]
[366284363,1750174244236,-460.0,0.00024109,6]
[366284364,1750174244246,-460.0,0.00024109,6]
[366284365,1750174244256,-460.0,0.00024109,6]
[366284366,1750174244266,-460.0,0.00024109,6]
[366284367,1750174244276,-460.0,0.00024109,6]